Cogmind - Beta 15 @@@ ROGUE MODE // 2025.07.01 @ 01:43:37 Player: Zaros426 Result: Destroyed by P-70 Sage with High-powered Shock Rifle Performance ------------- Evolutions (6) 3000 Regions Visited (16) 3200 Robots Destroyed (146) 730 Value Destroyed (4150) 4150 Prototype IDs (51) 1020 Alien Tech Used (0) 0 Bonus (2179) 2179 TOTAL SCORE: 14279 Bonus ------- High Alert Combat Kills 158 Follower Combat Kills 921 Registered with UFD 300 Met Optimus in HQ 500 Met Data Miner 300 Cogmind --------- Core Integrity 0/1150 Matter 10/300 Energy 99/100 System Corruption 26% Temperature Cool (0) Movement Core (50) Location -4/Factory Parts ------- > --- POWER (2) -------- (None) > --- PROPULSION (6) --- (None) > --- UTILITY (8) ------ Improved Terrain Scan Processor Makeshift Terrain Scan Processor Graphene Brace Advanced System Shield > --- WEAPON (3) ------- (None) > --- INVENTORY (5) ---- Advanced Force Booster Heavy Proton Missile Launcher Tiamat Missile Launcher Improved Datajack Improved Plasma Cutter Peak State ------------ > --- POWER ------------ Improved Ion Engine Micro Antimatter Reactor > --- PROPULSION ------- Nuclear Pulse Thruster Nuclear Pulse Thruster Nuclear Pulse Thruster Nuclear Pulse Thruster Impulse Thruster > --- UTILITY ---------- Improved Terrain Scan Processor Advanced Force Booster Improved Transmission Jammer Advanced Cloaking Device Hacking Suite Advanced System Shield Authchip [Propulsion] > --- WEAPON ----------- Chainsword Chainsword Lance > --- INVENTORY -------- Q-thruster Long-range Terrain Scanner Heavy Proton Missile Launcher LU-1G1's Laser Shovel Vortex Trap [Rating: 93] Favorites ----------- Power Subdweller Power Source Engine Subdweller Power Source Power Core Neutrino Core Reactor Cold Fusion Reactor Propulsion Light Treads Treads Light Treads Wheel Subdweller Monowheel Hover Unit Hover Unit Flight Unit Nuclear Pulse Thruster Utility Tower Shield Device Seismic Detector Storage Humpback Processor Core Analyzer Hackware Advanced System Shield Protection Tower Shield Weapon Heavy Battle Rifle Energy Gun Beam Rifle Energy Cannon Beam Cannon Ballistic Gun Heavy Battle Rifle Ballistic Cannon Improved Light Cannon Launcher Grenade Launcher Special Weapon LU-1G1's Laser Shovel Impact Weapon Makeshift Hammer Slashing Weapon DM-GVY's Chainsaw Piercing Weapon Lance Special Melee Weapon Dirty Datajack Build | -11 -10 -10 -10 -9 -6 -6 -6 -6 -5 -5 -5 -5 -5 -4 -4 -4 ------- Run | Yrd Mat Min Sub Scr Fac Low Low Dat Pro Fac Was Fac Upp Fac Was Fac Slots Evolved 12 | . . . . . 8 . . . . 2 . . . 2 . . Power 1 | . . . . . 1 . . . . . . . . . . . Propulsion 4 | . . . . . 2 . . . . 1 . . . 1 . . Utility 6 | . . . . . 4 . . . . 1 . . . 1 . . Weapon 1 | . . . . . 1 . . . . . . . . . . . Parts Attached 190 | 7 7 15 15 14 14 12 11 . 13 30 4 12 1 8 1 26 Power 23 | 1 . 2 2 4 1 2 1 . . 3 1 1 . 2 . 3 Engine 15 | 1 . 2 2 3 . 2 1 . . 1 . 1 . 1 . 1 Core 5 | . . . . 1 . . . . . 2 . . . 1 . 1 Reactor 3 | . . . . . 1 . . . . . 1 . . . . 1 Propulsion 44 | 2 . 3 5 3 1 3 1 . 5 8 1 5 . . . 7 Treads 17 | 2 . 3 2 . . 3 1 . 1 2 . . . . . 3 Leg . | . . . . . . . . . . . . . . . . . Wheel 9 | . . . 3 3 . . . . 1 1 . . . . . 1 Hover 1 | . . . . . . . . . 1 . . . . . . . Flight 17 | . . . . . 1 . . . 2 5 1 5 . . . 3 Utility 69 | 1 2 5 5 1 8 4 5 . 5 15 2 4 1 3 . 8 Device 34 | 1 1 1 1 . 3 4 . . 1 10 2 3 1 . . 6 Storage 8 | . 1 4 1 . 1 . . . 1 . . . . . . . Processor 11 | . . . . . 3 . 1 . 2 2 . . . 3 . . Hackware 7 | . . . . . 1 . . . . 3 . 1 . . . 2 Protection 9 | . . . 3 1 . . 4 . 1 . . . . . . . Artifact . | . . . . . . . . . . . . . . . . . Weapon 54 | 3 5 5 3 6 4 3 4 . 3 4 . 2 . 3 1 8 Energy Gun 9 | 2 . 1 . . 1 . . . 1 1 . . . 1 . 2 Energy Cannon 7 | . 2 1 . . . . 1 . . . . . . . . 3 Ballistic Gun 10 | 1 . 1 2 3 1 . . . 1 . . . . 1 . . Ballistic Cannon 4 | . 1 . . 2 . . 1 . . . . . . . . . Launcher 8 | . 1 2 1 . 1 . . . . 2 . . . . . 1 Special Weapon 4 | . 1 . . . 1 1 . . . . . . . 1 . . Impact Weapon 3 | . . . . . . . 2 . 1 . . . . . . . Slashing Weapon 4 | . . . . . . 1 . . . . . 2 . . 1 . Piercing Weapon 2 | . . . . . . . . . . 1 . . . . . 1 Special Melee Weapon 3 | . . . . 1 . 1 . . . . . . . . . 1 Unidentified Prototypes 11 | . . . 1 1 3 1 . . . 1 . . . 1 . 3 Parts Lost 77 | . . 3 3 . 5 7 7 . 10 23 . 4 . 5 1 9 Power 9 | . . 1 1 . . 1 2 . . 3 . 1 . . . . Propulsion 29 | . . 1 1 . 1 1 3 . 4 7 . 3 . 2 1 5 Utility 25 | . . . . . 2 5 1 . 5 7 . . . 2 . 3 Weapon 14 | . . 1 1 . 2 . 1 . 1 6 . . . 1 . 1 Highest Loss Streak 14 | . . 3 2 . 2 3 3 . 5 14 . 4 . 5 1 3 To Critical Strikes 1 | . . . . . 1 . . . . . . . . . . . Average Backups 16 | 3 8 16 18 22 12 6 12 12 12 6 4 4 4 4 5 5 Power . | . . . . 1 . . . . . . . . . . 1 . Propulsion 2 | . 1 3 3 3 . . . . . . 1 1 . . . . Utility 7 | . 1 6 7 10 7 3 7 7 7 3 1 1 2 1 1 1 Weapon 3 | 1 4 5 4 4 2 1 2 3 2 1 1 1 1 1 2 2 Tool/Special . | . . . . . . . . . . . . . . . . . Unused Backups 33 | 1 1 3 3 19 3 . . . 1 1 . 1 . . . . Power 2 | . . . . 2 . . . . . . . . . . . . Propulsion 2 | . . . . 1 . . . . . . . 1 . . . . Utility 14 | . 1 2 1 6 3 . . . . 1 . . . . . . Weapon 12 | 1 . 1 2 7 . . . . 1 . . . . . . . Tool/Special 3 | . . . . 3 . . . . . . . . . . . . Average Slot Usage (%) 62 | . 88 98 82 49 53 67 65 46 73 53 61 94 72 63 39 39 Engine 5 | . 10 13 11 4 4 3 2 . . . . 3 . . . . Treads 13 | . 27 27 19 12 . 8 13 6 11 1 . . . . . 2 Flight 1 | . . . . . 2 2 . . 10 8 17 27 17 11 4 3 Device 5 | . 12 13 . . 9 16 6 . 8 7 14 16 13 10 . 1 Storage 7 | . 9 14 11 7 5 6 6 6 6 1 . . . . . . Processor 2 | . . . . . 10 7 5 6 10 12 5 5 5 11 15 13 Protection 5 | . . . 11 7 1 . 7 20 5 . . . . . . . Energy Cannon 2 | . 19 9 . . . . 3 . . . . . . . . . Ballistic Gun 8 | . . 4 16 13 6 4 1 . . . . . . . . . Ballistic Cannon 1 | . 2 . . 1 2 . 3 . . . . . . . . . Impact Weapon 1 | . . . . . . . 6 6 12 3 . . . . . . Peak Build Rating 93 | 5 8 15 44 73 89 70 78 37 64 77 88 93 73 82 47 75 Average Rating 38 | 3 6 10 21 38 51 52 56 32 55 50 73 87 68 64 37 45 On Entrance 41 | . 5 8 15 38 73 36 68 41 32 31 65 88 72 66 40 29 Naked Turns . | . . . . . . . . . . . . . . . . . Heaviest Build 262 | 5 92 92 251 262 165 64 66 45 65 71 23 33 18 34 3 12 Greatest Support 96 | 20 40 40 40 40 35 76 96 20 48 32 34 34 21 21 6 75 Greatest Overweight (x) 37 | 1 2 2 12 12 37 14 2 2 5 5 1 1 . 1 . 3 Average Overweight (x) 2 | . . 1 3 5 3 1 . 2 . . . . . . . . Largest Inventory Capacity 35 | 5 25 25 35 35 25 15 15 15 20 20 5 5 5 5 5 5 Average Capacity 24 | 5 19 20 24 34 20 15 15 15 15 9 5 5 5 5 5 5 Most Carried 35 | 5 14 20 24 35 23 15 15 15 15 14 5 5 5 5 5 5 Average Carried 18 | 3 8 16 19 25 17 10 14 15 14 7 5 4 4 4 5 4 Final Capacity 35 | 5 25 20 35 25 15 15 15 15 20 5 5 5 5 5 5 5 Final Carried 25 | 4 13 20 24 25 14 15 15 15 12 5 5 4 5 5 5 5 Class Distribution -------------------- 41% | Hauler-Mutant 22% | Mutant 11% | Derelict-Mutant 7% | Scavenger-Mutant 4% | Hacker-Mutant 3% | Assassin 3% | Tank Dominant Class ---------------- Mutant | -10/Materials Scavenger-Mutant | -10/Mines Scavenger-Mutant | -10/Subcaves Hauler-Mutant | -9/Scraptown Mutant | -6/Factory Mutant | -6/Lower Caves Mutant | -6/Lower Caves Derelict-Mutant | -6/Data Miner Derelict-Mutant | -5/Proximity Caves Mutant | -5/Factory Hacker-Mutant | -5/Waste Hacker-Mutant | -5/Factory Hacker-Mutant | -5/Upper Caves Hacker-Mutant | -4/Factory Hacker-Mutant | -4/Waste Hacker-Mutant | -4/Factory Resources | -11 -10 -10 -10 -9 -6 -6 -6 -6 -5 -5 -5 -5 -5 -4 -4 -4 ----------- Run | Yrd Mat Min Sub Scr Fac Low Low Dat Pro Fac Was Fac Upp Fac Was Fac Matter Collected 7269 | 309 618 328 780 771 378 1534 1112 . 686 162 . 230 130 129 . 102 Remotely . | . . . . . . . . . . . . . . . . . Salvage Created 5950 | 281 646 473 488 182 349 743 1014 . 526 456 . 230 . 429 . 133 Parts 315 | 25 51 37 44 9 17 17 38 . 9 24 . 12 . 18 . 14 Haulers Intercepted 4 | . 2 . . . . . 1 . . . . . . 1 . . Recyclers Shooed 4 | . 2 . . . . . . . . 1 . 1 . . . . Parts Field Recycled . | . . . . . . . . . . . . . . . . . Retrieved Matter . | . . . . . . . . . . . . . . . . . Parts Self-Destructed 79 | . . . 8 . . 11 21 . 35 . . . 4 . . . Prevented 35 | . . . . . . 17 16 . . . . . 2 . . . Kills | -11 -10 -10 -10 -9 -6 -6 -6 -6 -5 -5 -5 -5 -5 -4 -4 -4 ------- Run | Yrd Mat Min Sub Scr Fac Low Low Dat Pro Fac Was Fac Upp Fac Was Fac Combat Hostiles Destroyed 91 | . 13 11 14 3 6 10 16 . . 12 . . . . . 6 Melee 8 | . . . . . . 1 5 . . 1 . . . . . 1 Guns 16 | . . . 6 2 3 3 2 . . . . . . . . . Cannons 14 | . 5 6 . 1 . . 2 . . . . . . . . . AOE 47 | . 8 5 8 . 3 5 3 . . 10 . . . . . 5 Classes Destroyed 20 | 3 5 2 1 2 . 3 1 . . 3 . . . . . . Worker 19 | 2 8 5 . . . . . . . 2 . . . 1 . 1 Builder 6 | . 4 1 . . . . . . . . . . . 1 . . Tunneler 17 | 9 1 4 . . . . . . . . . 1 . 1 . 1 Hauler 4 | . 2 . . . . . 1 . . . . . . 1 . . Recycler 7 | 1 . . . . 1 . . . . 1 . 2 . 2 . . Mechanic 1 | . . . . . . . . . . 1 . . . . . . Watcher 3 | . 3 . . . . . . . . . . . . . . . Swarmer 29 | . 6 . 3 . 4 2 3 . . 5 . . . . . 6 Cutter 1 | . . . . . . . . . . 1 . . . . . . Grunt 28 | . 7 6 . . 1 5 7 . . 2 . . . . . . Brawler 3 | . . . . . . 1 2 . . . . . . . . . Duelist 3 | . . . . . . 2 1 . . . . . . . . . Sentry 5 | . . 2 . . 1 . 1 . . 1 . . . . . . Hunter 2 | . . . . . . . . . . 2 . . . . . . Programmer 2 | . . . . . . . 1 . . 1 . . . . . . Subdweller 11 | . . . 11 . . . . . . . . . . . . . Guru 1 | . . . . 1 . . . . . . . . . . . . Scrapper 2 | . . . . 2 . . . . . . . . . . . . Packrat 2 | . . . . . . 2 . . . . . . . . . . Assembled 3 | . . 3 . . . . . . . . . . . . . . Mutant 2 | . . . . . . 1 1 . . . . . . . . . Best Kill Streak 8 | 6 8 5 3 1 4 2 5 . . 7 . 2 . 2 . 6 Combat Bots Only 6 | . 6 3 3 1 4 2 4 . . 5 . . . . . 5 Max Kills in Single Turn 5 | 1 2 3 2 1 1 2 2 . . 5 . 1 . 1 . 3 Gunslinging . | . . . . . . . . . . . . . . . . . Exploded 5 | . 2 1 2 . 1 2 2 . . 5 . . . . . 3 Melee 1 | . . . . . . 1 1 . . 1 . . . . . 1 Uniques/NPCs Destroyed . | . . . . . . . . . . . . . . . . . Combat | -11 -10 -10 -10 -9 -6 -6 -6 -6 -5 -5 -5 -5 -5 -4 -4 -4 -------- Run | Yrd Mat Min Sub Scr Fac Low Low Dat Pro Fac Was Fac Upp Fac Was Fac Hostile Shots Fired 1151 | . 35 55 50 14 163 134 90 . 76 157 . 31 . 78 1 267 Missed 437 | . 9 15 16 5 70 50 24 . 20 61 . 12 . 40 . 115 Hits 714 | . 26 40 34 9 93 84 66 . 56 96 . 19 . 38 1 152 Melee 19 | . . . . . . 2 6 . . 3 . . . . 1 7 Projectile 695 | . 26 40 34 9 93 82 60 . 56 93 . 19 . 38 . 145 AOE 14 | . . . . . . . . . 11 3 . . . . . . Critical Strikes 34 | . . 2 1 1 4 5 2 . 2 4 . . . . 1 12 Actively Blocked 3 | . . . . . . . . . . . . . . . . 3 Part Disruptions 4 | . . 1 . . . 2 . . . . . . . . . 1 Damage Taken 14052 | . 317 623 681 154 1313 1408 1212 . 1494 2791 . 353 . 565 49 3092 Core 3161 | . 82 65 82 . 24 506 111 . 151 898 . 86 . 371 49 736 Absorbed by Shields 32 | . . . . . . . . . . . . 32 . . . . Ignored by Resistances 8 | . . . . . . . . . 8 . . . . . . . Regen/Repaired (Parts) 98 | . 88 . . . 10 . . . . . . . . . . . Core Remaining (%) 28 | 100 . . . 8 . . . . 6 . . . 1 . . . Volleys Fired 351 | 26 102 48 52 20 20 38 24 . 11 4 . . . . . 6 Largest 5 | 2 2 2 2 4 5 1 3 . 1 1 . . . . . 1 Hottest 208 | 100 160 120 89 134 208 60 145 . 30 40 . . . . . 88 Shots Fired 561 | 43 152 88 97 38 48 43 31 . 11 4 . . . . . 6 Gun 279 | 43 29 24 86 12 35 28 10 . 11 . . . . . . 1 Cannon 192 | . 100 50 . 26 8 . 8 . . . . . . . . . Launcher 74 | . 12 12 11 . 5 12 13 . . 4 . . . . . 5 Special 16 | . 11 2 . . . 3 . . . . . . . . . . Kinetic 246 | 9 17 20 77 38 33 28 13 . 11 . . . . . . . Thermal 236 | 34 123 56 9 . 10 3 . . . . . . . . . 1 Explosive 42 | . 12 12 11 . . . . . . 3 . . . . . 4 Electromagnetic 37 | . . . . . 5 12 18 . . 1 . . . . . 1 Robot Hit Streak 13 | 13 8 9 12 9 7 5 3 . 3 4 . . . . . 5 Robot Miss Streak 7 | 2 7 3 2 3 6 3 3 . 3 . . . . . . 1 Penetration Max . | . . . . . . . . . . . . . . . . . Secondary Targets 1 | . . . . . 1 . . . . . . . . . . . Max Gunslinging Chain 1 | . . . . . 1 . . . . . . . . . . . Shots Hit Robots 361 | 26 66 46 49 17 25 41 26 . 26 14 . 6 . 10 . 9 Core Hits 227 | 14 37 29 28 4 16 27 21 . 10 24 . 3 . 5 . 9 Critical Kills 1 | . . . 1 . . . . . . . . . . . . . Critical Parts Destroyed 2 | . . . . . . . . . 1 1 . . . . . . Critical Strikes 20 | 1 . 1 2 . 3 4 4 . 2 3 . . . . . . Burn 4 | 1 . . 1 . 2 . . . . . . . . . . . Destroy 1 | . . . 1 . . . . . . . . . . . . . Blast 2 | . . 1 . . 1 . . . . . . . . . . . Smash 2 | . . . . . . . . . 1 1 . . . . . . Sever 11 | . . . . . . 4 4 . 1 2 . . . . . . Melee Attacks 146 | . . . . 9 . 29 17 . 32 21 . 13 . 16 . 9 Impact 26 | . . . . . . . 4 . 15 7 . . . . . . Slashing 53 | . . . . . . 10 13 . 17 9 . 2 . 2 . . Piercing 58 | . . . . . . 19 . . . 5 . 11 . 14 . 9 Sneak Attacks 23 | . . . . 4 . 2 . . . 4 . 3 . 7 . 3 Combat Hostiles . | . . . . . . . . . . . . . . . . . Follow-up Attacks 13 | . . . . . . . 3 . 5 2 . 1 . 2 . . Damage Inflicted 15117 | 311 1575 1324 1624 225 778 1409 1392 . 1558 2844 . 346 . 694 . 1037 Guns 2642 | 311 167 242 954 107 377 253 65 . 139 . . . . . . 27 Cannons 1649 | . 754 570 . 118 101 . 106 . . . . . . . . . Explosions 6229 | . 606 512 670 . 300 656 705 . . 2153 . . . . . 627 Melee 4534 | . . . . . . 500 509 . 1419 691 . 346 . 694 . 375 Ramming 15 | . . . . . . . 7 . . . . . . . . 8 Kinetic 2396 | 58 154 246 896 225 336 253 89 . 139 . . . . . . . Thermal 2888 | 253 815 623 58 . 142 . 145 . . 825 . . . . . 27 Explosive 3276 | . 606 455 670 . . . . . . 1048 . . . . . 497 Electromagnetic 2008 | . . . . . 300 656 642 . . 280 . . . . . 130 Impact 701 | . . . . . . . 41 . 371 289 . . . . . . Slashing 2383 | . . . . . . 469 468 . 1048 261 . 32 . 105 . . Piercing 1450 | . . . . . . 31 . . . 141 . 314 . 589 . 375 Highest Corruption 26 | . 2 2 2 . 1 5 5 5 7 14 14 15 15 . 10 26 Average Corruption 4 | . 2 2 2 . 1 2 5 5 5 4 14 14 15 . 10 10 Corruption Purged 5 | . . . . . . . . . . . . . . . . 5 Corruption Blocked . | . . . . . . . . . . . . . . . . . Effects 326 | . 36 25 26 . . 59 54 5 53 2 7 16 2 . 3 38 Message Errors 68 | . 8 7 9 . . 12 13 3 5 1 1 1 1 . . 7 Matter Fused 69 | . 8 2 3 . . 14 15 . 16 . 1 4 . . 1 5 Heat Flow Errors 35 | . 3 2 1 . . 8 5 . 8 . 1 2 . . . 5 Energy Discharges 40 | . 6 1 4 . . 7 9 . 9 . . 2 . . . 2 Parts Rejected 4 | . . . . . . . 2 . . . 1 . . . . 1 Parts Fused 4 | . 1 . . . . 2 1 . . . . . . . . . Data Loss (minor) 42 | . 6 2 3 . . 7 4 2 11 . . 4 . . . 3 Data Loss (major) 19 | . 3 5 3 . . 1 1 . 2 1 . 2 . . . 1 Misfires 13 | . 1 3 2 . . 5 2 . . . . . . . . . Alerts 14 | . . 2 1 . . 3 1 . 2 . . 1 . . . 4 Misdirections 16 | . . . . . . . . . . . 3 . 1 . 2 10 Weapon Failures 2 | . . 1 . . . . 1 . . . . . . . . . Overload Shots . | . . . . . . . . . . . . . . . . . Overflow Damage 793 | . 2 23 19 . . 75 28 . 210 261 . 15 . 103 . 57 Projectiles 2 | . 2 . . . . . . . . . . . . . . . Explosions 288 | . . 23 19 . . 1 9 . . 179 . . . . . 57 Melee 503 | . . . . . . 74 19 . 210 82 . 15 . 103 . . Knockbacks 5 | . 2 . . . . . . . . 3 . . . . . . Impact 3 | . . . . . . . . . . 3 . . . . . . Kinetic 2 | . 2 . . . . . . . . . . . . . . . Secondary . | . . . . . . . . . . . . . . . . . Self-Inflicted Damage 539 | . 42 38 . . 8 64 . . . 344 . . . . . 43 Shots 16 | . 2 1 . . 1 4 . . . 6 . . . . . 2 Rammed 12 | . . . . . . . 1 . . . . . . . . 11 Targets Rammed 12 | . . . . . . . 1 . . . . . . . . 11 Kicked . | . . . . . . . . . . . . . . . . . Crushed . | . . . . . . . . . . . . . . . . . Highest Temperature 697 | 168 367 697 196 274 401 257 233 . 236 5 262 196 . . . 409 Average Temperature 109 | 73 92 147 107 132 133 84 64 . 98 5 202 89 . . . 127 Received Heat Transfer 2404 | . 102 226 162 85 449 529 287 . 24 210 . 27 . 39 . 264 Effects 25 | . 6 15 . . 4 . . . . . . . . . . . Shutdowns 3 | . . 2 . . 1 . . . . . . . . . . . Energy Bleed 2 | . . 1 . . 1 . . . . . . . . . . . Interference 8 | . 6 2 . . . . . . . . . . . . . . Matter Decay 4 | . . 2 . . 2 . . . . . . . . . . . Short Circuit 1 | . . 1 . . . . . . . . . . . . . . Damage (minor) 1 | . . 1 . . . . . . . . . . . . . . Damage (major) 6 | . . 6 . . . . . . . . . . . . . . Siege Activations . | . . . . . . . . . . . . . . . . . Martial Activations . | . . . . . . . . . . . . . . . . . Shielding Activations . | . . . . . . . . . . . . . . . . . Robots Disrupted . | . . . . . . . . . . . . . . . . . Combat Hostiles . | . . . . . . . . . . . . . . . . . Robots Corrupted 7 | . . . . . . 1 5 . . 1 . . . . . . Combat Hostiles 7 | . . . . . . 1 5 . . 1 . . . . . . Parts Fried 12 | . . . . . 1 2 4 . . 5 . . . . . . Impact Corruptions 5 | . . . . . . . 2 . 1 2 . . . . . . Robots Melted . | . . . . . . . . . . . . . . . . . Combat Hostiles . | . . . . . . . . . . . . . . . . . Parts Melted 10 | 2 2 1 1 2 1 1 . . . . . . . . . . Heat Transferred 5446 | 814 1839 1271 222 . 550 . 100 . . 600 . . . . . 50 Parts Sabotaged . | . . . . . . . . . . . . . . . . . Parts Stolen . | . . . . . . . . . . . . . . . . . Parts Stripped . | . . . . . . . . . . . . . . . . . Power Chain Reactions 4 | . . . . . 1 . 2 . . 1 . . . . . . Alert | -11 -10 -10 -10 -9 -6 -6 -6 -6 -5 -5 -5 -5 -5 -4 -4 -4 ------- Run | Yrd Mat Min Sub Scr Fac Low Low Dat Pro Fac Was Fac Upp Fac Was Fac Maximum Alert Level 3 | . 1 . . . . . . . . 3 1 1 . . . 2 Low Security (%) 77 | 100 73 100 . . 100 . . . . 1 . 96 . 100 100 64 Level 1 15 | . 26 . . . . . . . . 14 100 3 . . . 30 Level 2 4 | . . . . . . . . . . 48 . . . . . 5 Level 3 2 | . . . . . . . . . . 35 . . . . . . Level 4 . | . . . . . . . . . . . . . . . . . Level 5 . | . . . . . . . . . . . . . . . . . High Security . | . . . . . . . . . . . . . . . . . Max Security . | . . . . . . . . . . . . . . . . . Peak Influence 961 | 15 316 120 . . 88 . . . . 961 330 204 . 49 17 464 Initial 330 | . . 25 . . . . . . . 210 330 189 . 31 17 . Average 132 | 3 143 17 . . 34 . . . . 609 299 123 . 10 7 152 Influence Increases 5376 | 60 634 332 115 . 272 471 475 . 501 1400 . 111 22 106 . 877 Destroy 0b10 Robot/C 1900 | . 260 160 60 . 120 300 300 . 320 240 . . 20 . . 120 Destroy 0b10 Robot/NC 335 | 60 90 50 . . 5 . 10 . 45 20 . 15 . 30 . 10 Destroy Leader 262 | . 70 10 10 . 30 20 30 . 30 50 . . . 2 . 10 Allied During Kill 139 | . . . . . . 31 . . 106 . . . 2 . . . Trap Triggered on 0b10 10 | . . . . . . . . . . 10 . . . . . . Successful Hack 96 | . 31 14 . . 24 . . . . . . . . . . 27 Select Force Hacks 60 | . 60 . . . . . . . . . . . . . . . Disable Machine 450 | . . 15 . . 45 . . . . 315 . 45 . . . 30 Anti-Garrison Action 150 | . . . . . . . . . . 150 . . . . . . Destroy Structure 534 | . 78 83 . . 3 . . . . 270 . 6 . 14 . 80 Advance Influence 150 | . . . . . . . . . . 150 . . . . . . Partial Spotted 90 | . 15 . . . . . . . . 15 . . . 15 . 45 Lose Combat Pursuer 1200 | . 30 . 45 . 45 120 135 . . 180 . 45 . 45 . 555 Influence Decreases 4912 | 60 567 399 115 . 272 241 705 . 404 553 674 319 34 107 49 413 Entered New Map 893 | . . 42 . . . . 44 . . 37 614 81 24 19 32 . Time Decay 3275 | 60 567 346 115 . 212 161 591 . 274 286 40 198 10 82 10 323 Lost Part 597 | . . 11 . . 40 20 70 . 90 230 . 40 . 6 . 90 Lost Ally 147 | . . . . . 20 60 . . 40 . 20 . . . 7 . Squads Dispatched 31 | . 3 . . . 3 . . . . 11 . 3 . 2 . 9 Investigation 14 | . 2 . . . 1 . . . . 4 . 1 . 1 . 5 Extermination 5 | . . . . . 1 . . . . 1 . 1 . . . 2 Reinforcement 9 | . 1 . . . 1 . . . . 3 . 1 . 1 . 2 Assault 3 | . . . . . . . . . . 3 . . . . . . Garrison . | . . . . . . . . . . . . . . . . . Intercept . | . . . . . . . . . . . . . . . . . Searches Triggered . | . . . . . . . . . . . . . . . . . Data Miner Redirects 6 | . . . . . . . . . . 2 . . . 1 . 3 Construction Impeded . | . . . . . . . . . . . . . . . . . Haulers Reinforced 2 | . . . . . . . . . . . . . . 1 . 1 Active Scanning Responses . | . . . . . . . . . . . . . . . . . Cargo Convoy Interrupts . | . . . . . . . . . . . . . . . . . Stealth | -11 -10 -10 -10 -9 -6 -6 -6 -6 -5 -5 -5 -5 -5 -4 -4 -4 --------- Run | Yrd Mat Min Sub Scr Fac Low Low Dat Pro Fac Was Fac Upp Fac Was Fac Distress Signals 42 | . 1 . . . 1 . . . 39 . . . . . . 1 Communications Jammed . | . . . . . . . . . . . . . . . . . Distress Signals . | . . . . . . . . . . . . . . . . . Times Spotted 280 | . 28 11 17 7 17 27 24 . 23 31 6 12 1 14 5 57 Peak Tracking Total 14 | . 7 2 3 3 8 5 5 . 5 12 6 7 1 11 5 14 Tactical Retreats 35 | . 1 1 1 . 1 5 4 . . 8 . 1 . 1 . 12 Traps | -11 -10 -10 -10 -9 -6 -6 -6 -6 -5 -5 -5 -5 -5 -4 -4 -4 ------- Run | Yrd Mat Min Sub Scr Fac Low Low Dat Pro Fac Was Fac Upp Fac Was Fac Traps Triggered 9 | . 1 . . . . . . . . 1 . 3 . 1 . 3 Indirectly . | . . . . . . . . . . . . . . . . . Trap Hack Attempts . | . . . . . . . . . . . . . . . . . Triggered . | . . . . . . . . . . . . . . . . . Disarmed . | . . . . . . . . . . . . . . . . . Reprogrammed . | . . . . . . . . . . . . . . . . . Reused 2 | . . . . . . . 1 . . 1 . . . . . . Traps Extracted . | . . . . . . . . . . . . . . . . . Installed 3 | . . . . . . . 2 . . 1 . . . . . . Triggered 2 | . . . . . . . 1 . . 1 . . . . . . Most Traps Carried 4 | . . . . 3 3 4 4 2 2 2 1 1 . . . . Machines | -11 -10 -10 -10 -9 -6 -6 -6 -6 -5 -5 -5 -5 -5 -4 -4 -4 ---------- Run | Yrd Mat Min Sub Scr Fac Low Low Dat Pro Fac Was Fac Upp Fac Was Fac Machines Disabled 43 | . 1 2 2 6 3 1 1 . . 22 . 3 . . . 2 Max in Single Turn 7 | . 1 1 1 1 1 1 1 . . 7 . 1 . . . 1 Garrison Access 4 | . . . . . . . . . . 2 . 1 . 1 . . Machines Repaired . | . . . . . . . . . . . . . . . . . Machines Dismantled . | . . . . . . . . . . . . . . . . . Machines Sabotaged . | . . . . . . . . . . . . . . . . . Overloaded Fab Kills . | . . . . . . . . . . . . . . . . . Hacking | -11 -10 -10 -10 -9 -6 -6 -6 -6 -5 -5 -5 -5 -5 -4 -4 -4 --------- Run | Yrd Mat Min Sub Scr Fac Low Low Dat Pro Fac Was Fac Upp Fac Was Fac Machines Accessed 52 | . 8 2 2 9 4 . . 4 . 8 . 4 . 5 . 6 Terminals 15 | . 5 1 . . 1 . . . . 3 . . . 2 . 3 Fabricators 7 | . . . . . 1 . . . . 2 . 1 . 1 . 2 Repair Stations 1 | . 1 . . . . . . . . . . . . . . . Recycling Units 7 | . 2 . . . 1 . . . . 1 . 1 . 1 . 1 Scanalyzers . | . . . . . . . . . . . . . . . . . Garrison Access 6 | . . . . . 1 . . . . 2 . 2 . 1 . . Total Hacks 195 | . 24 5 13 54 8 . . 31 . 24 . 8 . 12 . 16 Successful 137 | . 13 3 13 54 4 . . 31 . 8 . 2 . 4 . 5 Failed 56 | . 10 1 . . 4 . . . . 16 . 6 . 8 . 11 Catastrophic 18 | . 3 . . . 2 . . . . 5 . 1 . 3 . 4 Database Lockouts 2 | . 1 1 . . . . . . . . . . . . . . Manual 37 | . 21 4 . . 4 . . . . 6 . . . 1 . 1 Terminals 50 | . 19 4 . . 2 . . . . 9 . . . 6 . 10 Fabricators 14 | . . . . . 1 . . . . 5 . 1 . 3 . 4 Repair Stations 3 | . 3 . . . . . . . . . . . . . . . Recycling Units 19 | . 2 . . . 4 . . . . 7 . 2 . 2 . 2 Scanalyzers . | . . . . . . . . . . . . . . . . . Garrison Access 10 | . . . . . 1 . . . . 3 . 5 . 1 . . Terminal Hacks 108 | . 4 3 13 54 1 . . 31 . 1 . . . . . 1 Record 72 | . . . 12 49 . . . 11 . . . . . . . . Part Schematic 16 | . . 2 . . . . . 13 . . . . . . . 1 Robot Schematic 4 | . . . . . . . . 4 . . . . . . . . Robot Analysis 7 | . 3 . . 4 . . . . . . . . . . . . Prototype ID Bank 4 | . 1 . . . . . . 3 . . . . . . . . Open Door 1 | . . 1 . . . . . . . . . . . . . . Branch Access Points 1 | . . . . . 1 . . . . . . . . . . . Recall Reinforcements 1 | . . . . . . . . . . 1 . . . . . . Proto ID Catalog 2 | . . . 1 1 . . . . . . . . . . . . Fabricator Hacks 7 | . . . . . 1 . . . . 1 . . . 2 . 3 Network Status 1 | . . . . . 1 . . . . . . . . . . . Load Schematic 4 | . . . . . . . . . . 1 . . . 1 . 2 Build 2 | . . . . . . . . . . . . . . 1 . 1 Repair Station Hacks 2 | . 2 . . . . . . . . . . . . . . . Scan Component 1 | . 1 . . . . . . . . . . . . . . . Repair 1 | . 1 . . . . . . . . . . . . . . . Recycling Unit Hacks 5 | . . . . . . . . . . 4 . 1 . . . . Process 1 | . . . . . . . . . . 1 . . . . . . Report Inventory 1 | . . . . . . . . . . . . 1 . . . . Retrieve Matter 3 | . . . . . . . . . . 3 . . . . . . Scanalyzer . | . . . . . . . . . . . . . . . . . Garrison Access Hacks 3 | . . . . . . . . . . 1 . 1 . 1 . . Seal Access 3 | . . . . . . . . . . 1 . 1 . 1 . . Unauthorized Hacks 10 | . 7 . . . . . . . . 1 . . . 1 . 1 Terminals 6 | . 5 . . . . . . . . . . . . 1 . . Assimilate 1 | . . . . . . . . . . . . . . 1 . . Botnet 1 | . 1 . . . . . . . . . . . . . . . Skim 4 | . 4 . . . . . . . . . . . . . . . Fabricators 2 | . . . . . . . . . . 1 . . . . . 1 Recompile 2 | . . . . . . . . . . 1 . . . . . 1 Repair Stations . | . . . . . . . . . . . . . . . . . Recycling Units 2 | . 2 . . . . . . . . . . . . . . . Tunnel 2 | . 2 . . . . . . . . . . . . . . . Scanalyzers . | . . . . . . . . . . . . . . . . . Garrison Access . | . . . . . . . . . . . . . . . . . Data Cores Recovered . | . . . . . . . . . . . . . . . . . Used . | . . . . . . . . . . . . . . . . . Hacking Detections 28 | . 6 1 . . 4 . . . . 6 . 3 . 4 . 4 Full Trace Events 10 | . 2 . . . 1 . . . . 3 . . . 1 . 3 Feedback Events 1 | . . . . . . . . . . . . . . . . 1 Hackware Fried 1 | . . . . . . . . . . . . . . . . 1 Feedback Blocked . | . . . . . . . . . . . . . . . . . Robot Schematics Acquired 4 | . . . . . . . . 4 . . . . . . . . Robots Built . | . . . . . . . . . . . . . . . . . Authchips . | . . . . . . . . . . . . . . . . . Time . | . . . . . . . . . . . . . . . . . Total Robot Build Rating . | . . . . . . . . . . . . . . . . . Part Schematics Acquired 16 | . . 2 . . . . . 13 . . . . . . . 1 Parts Built 1 | . . . . . . . . . . . . . . . . 1 Authchips 1 | . . . . . . . . . . . . . . . . 1 Time 256 | . . . . . . . . . . . . . . 117 . 139 Total Part Build Rating 9 | . . . . . . . . . . . . . . . . 9 Parts Repaired 1 | . 1 . . . . . . . . . . . . . . . Time 13 | . 13 . . . . . . . . . . . . . . . Parts Recycled . | . . . . . . . . . . . . . . . . . Recycled Matter 117 | . . . . . . . . . . 117 . . . . . . Retrieved Matter 117 | . . . . . . . . . . 117 . . . . . . Retrieved Components . | . . . . . . . . . . . . . . . . . Parts Scanalyzed . | . . . . . . . . . . . . . . . . . Part Schematics Acquired . | . . . . . . . . . . . . . . . . . Parts Damaged . | . . . . . . . . . . . . . . . . . Bothacking | -11 -10 -10 -10 -9 -6 -6 -6 -6 -5 -5 -5 -5 -5 -4 -4 -4 ------------ Run | Yrd Mat Min Sub Scr Fac Low Low Dat Pro Fac Was Fac Upp Fac Was Fac Used RIF Installer . | . . . . . . . . . . . . . . . . . Robots Hacked 4 | . . . . 4 . . . . . . . . . . . . Non-combat 1 | . . . . 1 . . . . . . . . . . . . Combat 3 | . . . . 3 . . . . . . . . . . . . Robot Hacks Applied 4 | . . . . 4 . . . . . . . . . . . . parse_system 4 | . . . . 4 . . . . . . . . . . . . Relay Couplers Released 6 | . . . . . . . . . . 6 . . . . . . Machine Destruction 3 | . . . . . . . . . . 3 . . . . . . Programmers 3 | . . . . . . . . . . 3 . . . . . . Fabnet Peak Effective % . | . . . . . . . . . . . . . . . . . Robots Rewired 3 | . . . . . . 3 . . . . . . . . . . Allies Hacked . | . . . . . . . . . . . . . . . . . Hacks Repelled . | . . . . . . . . . . . . . . . . . Allies | -11 -10 -10 -10 -9 -6 -6 -6 -6 -5 -5 -5 -5 -5 -4 -4 -4 -------- Run | Yrd Mat Min Sub Scr Fac Low Low Dat Pro Fac Was Fac Upp Fac Was Fac Total Allies 10 | . . . . . . 5 1 . 1 . 1 . 1 1 . . Largest Group 3 | . . . . . . 3 1 1 2 . 1 . 1 1 1 . Highest-Rated Group 195 | . . . . . . 87 99 99 195 . 31 . 141 10 10 . Highest-Rated Ally 141 | . . . . . . 29 99 99 99 . 31 . 141 10 10 . Total Orders 2 | . . . . . 1 . . . . 1 . . . . . . RETURN 2 | . . . . . 1 . . . . 1 . . . . . . Ally Attacks 146 | . . . . . 8 50 . . 75 . 11 . 2 . . . Total Damage 4906 | . . . . . . 547 . . 4024 . 187 . 148 . . . Kills 27 | . . . . . . 6 . . 20 . . . 1 . . . Allies Corrupted 1 | . . . . . . . . . 1 . . . . . . . Allies Melted 2 | . . . . 2 . . . . . . . . . . . . Intel | -11 -10 -10 -10 -9 -6 -6 -6 -6 -5 -5 -5 -5 -5 -4 -4 -4 ------- Run | Yrd Mat Min Sub Scr Fac Low Low Dat Pro Fac Was Fac Upp Fac Was Fac Active Infowar (turns) 10237 | 18 2430 1999 48 . 481 3126 801 . 1144 64 1 24 12 89 . . Sensors 1279 | . . . . . 130 1147 . . . 2 . . . . . . Terrain 1471 | . . . . . 235 4 . . 1144 . . . . 88 . . Structural 3295 | . . . . . . 2494 801 . . . . . . . . . Seismic 5762 | 18 2430 1999 48 . 74 1154 . . . 39 . . . . . . Machine Analysis 1089 | . . . . . 478 611 . . . . . . . . . . Cloaking 13 | . . . . . . . . . . . 1 . 11 1 . . Jamming 15 | . . . . . . . . . . 15 . . . . . . ECM 40 | . . . . . . . . . . 15 . 24 1 . . . Robot Analysis Total 6 | . 2 . . 4 . . . . . . . . . . . . Derelict Logs Recovered 11 | . . 1 2 5 . 1 1 . 1 . . . . . . . Drone Launches 21 | . . . . . 10 8 . . . 3 . . . . . . Drone Recoveries 5 | . . . . . 2 . . . . 3 . . . . . . Exploration | -11 -10 -10 -10 -9 -6 -6 -6 -6 -5 -5 -5 -5 -5 -4 -4 -4 ------------- Run | Yrd Mat Min Sub Scr Fac Low Low Dat Pro Fac Was Fac Upp Fac Was Fac Turns Passed 33955 | 246 2660 2070 2098 15586 482 3226 2320 315 2656 626 89 413 36 265 48 819 Spaces Moved 11544 | 62 1058 736 864 2560 261 1277 869 96 922 760 176 316 69 337 108 1073 Core 1433 | 60 620 . . . 1 2 . . . 41 23 . . . 26 660 Treads 6811 | 2 438 736 537 2251 . 993 869 96 882 1 . . . . . 6 Legs . | . . . . . . . . . . . . . . . . . Wheels 969 | . . . 327 309 183 . . . 40 110 . . . . . . Hover . | . . . . . . . . . . . . . . . . . Flight 2331 | . . . . . 77 282 . . . 608 153 316 69 337 82 407 Fastest Speed 28 | 50 50 240 160 90 80 160 160 330 150 34 34 28 34 34 40 35 Average Speed 248 | 70 156 252 215 572 150 221 230 330 184 55 44 29 34 37 42 48 Slowest Speed 1900 | 160 320 320 640 640 1900 750 330 330 330 400 100 108 34 114 50 200 Overloaded Moves . | . . . . . . . . . . . . . . . . . Propulsion Burnouts . | . . . . . . . . . . . . . . . . . Robots Hopped 21 | . . . . . . . . . . 1 . . . 7 . 13 Potential Cave-ins 11 | . . . . . . . . . . 11 . . . . . . Cave-ins Triggered 1 | . . . . . . . . . . 1 . . . . . . Exploration Rate (%) 53 | 3 99 99 47 94 9 86 75 71 79 24 86 16 8 10 77 28 Regions Visited 16 Branch Regions 8 Pre-discovered Areas 5 | . 2 . . 1 . 1 . 1 . . . . . . . . Known Exits Taken 3 | . . . . . 1 . 1 . . . . . 1 . . . Unknown Exits Taken 9 | 1 1 1 1 1 . 1 . 1 1 . . 1 . . . . Scrap Searched 16 | . . 1 3 5 . 2 2 . 2 . . . 1 . . . Spaces Dug 168 | . 18 17 8 3 3 43 12 . 12 42 . 3 . 7 . . Terrain Destroyed 583 | . 85 99 79 12 3 28 25 . 12 181 . 3 . 7 . 49 Melee 16 | . . . . . . . . . 4 4 . 2 . 6 . . Projectile 29 | . 9 3 . 12 . 2 3 . . . . . . . . . AOE 464 | . 76 96 79 . 3 . 22 . . 139 . . . . . 49 Terrain Rammed . | . . . . . . . . . . . . . . . . . Walls Destroyed . | . . . . . . . . . . . . . . . . . Machines Disabled . | . . . . . . . . . . . . . . . . . Actions | -11 -10 -10 -10 -9 -6 -6 -6 -6 -5 -5 -5 -5 -5 -4 -4 -4 --------- Run | Yrd Mat Min Sub Scr Fac Low Low Dat Pro Fac Was Fac Upp Fac Was Fac Total 16108 | 221 1894 852 1003 3464 332 1614 1125 97 1824 922 184 614 81 447 109 1325 Wait 3407 | 113 686 24 9 760 7 210 175 . 824 73 2 249 9 77 . 189 Move 11492 | 61 1057 735 863 2559 260 1276 868 95 921 757 175 315 68 325 107 1050 Hop 16 | . . . . . . . . . . 1 . . . 5 . 10 Pick Up 159 | 7 15 11 33 54 4 8 10 . 5 7 . 1 1 2 . 1 Fast Attach 126 | 4 4 5 2 7 5 7 7 . 8 22 5 14 1 8 1 26 Attach 88 | 3 8 3 7 4 13 12 6 . 12 13 . 1 . 4 . 2 Detach 43 | 2 7 1 3 . 6 6 1 . 8 4 . 1 . 2 . 2 Swap 97 | 3 8 15 19 11 6 4 8 . 8 9 . 3 . 1 . 2 Drop 153 | 2 7 10 15 40 11 4 9 2 4 11 2 7 2 9 1 17 Fire 351 | 26 102 48 52 20 20 38 24 . 11 4 . . . . . 6 Melee 126 | . . . . 9 . 29 13 . 22 19 . 11 . 14 . 9 Ram 1 | . . . . . . . . . . . . . . . . 1 Kick . | . . . . . . . . . . . . . . . . . Crush 11 | . . . . . . . 1 . . . . . . . . 10 Escape Stasis 13 | . . . . . . . . . . 1 . 12 . . . . Rewire 22 | . . . . . . 20 1 . 1 . . . . . . . Trap 3 | . . . . . . . 2 . . 1 . . . . . . Miscellaneous . | . . . . . . . . . . . . . . . . . Route ------- -11/Scrapyard -10/Materials (discovered 5 exits: [*Mat x3] / *Min / *Sub) -10/Mines (discovered 3 exits: [*Mat x2] / *Sub) -10/Subcaves (discovered 3 exits: [*Mat] / Rec / *Scr) -9/Scraptown (discovered 2 exits: *Fac x2) -6/Factory (discovered 2 exits: *Low x2) -6/Lower Caves (discovered 2 exits: [*Low] / *Dat) -6/Lower Caves (discovered 2 exits: *Fac / *Dat) -6/Data Miner -5/Proximity Caves -5/Factory (discovered 2 exits: *Fac x2) -5/Waste -5/Factory -5/Upper Caves -4/Factory -4/Waste -4/Factory History --------- Turn | Location | Event 4 | -11/Scrapyard | Discovered new exit (range 16) 247 | -11/Scrapyard | Entered Materials 312 | -10/Materials | Build established: Mutant 372 | -10/Materials | Discovered new exit (range 16) 408 | -10/Materials | Discovered new exit (range 13) 581 | -10/Materials | Discovered new exit (range 6) 776 | -10/Materials | Discovered new exit (range 9) 821 | -10/Materials | Discovered new exit (range 6) 1071 | -10/Materials | Repaired Lgt. Treads 1373 | -10/Materials | Central database locked down 2907 | -10/Materials | Entered Mines 2908 | -10/Mines | Met a Derelict bent on vengeance 3000 | -10/Mines | Discovered new exit (range 8) 3077 | -10/Mines | Discovered new exit (range 6) 3301 | -10/Mines | Central database locked down 3382 | -10/Mines | Discovered new exit (range 10) 3456 | -10/Mines | Core integrity fell below 50% 3486 | -10/Mines | Lost 3 parts (1p1n1w) 3584 | -10/Mines | Excavation squad dispatched 3584 | -10/Mines | A large section of the Mines collapsed 3819 | -10/Mines | Build established: Scavenger-Mutant 3871 | -10/Mines | A weapon hastily lodged in a ceiling crevice suddenly fell to the ground 3936 | -10/Mines | Received a Rocket Launcher from a helpful Derelict 4027 | -10/Mines | Learned 2 Materials zone layouts 4190 | -10/Mines | Found a Scrap Suit stashed away for nefarious purposes 4269 | -10/Mines | Found the Drone Emporium 4280 | -10/Mines | Found Prototype Device 4977 | -10/Mines | Entered Subcaves 4978 | -10/Subcaves | Approached by a straggling Scientist 5067 | -10/Subcaves | Learned location of 1 exit from Materials 5108 | -10/Subcaves | Identified exit to Recycling 5196 | -10/Subcaves | Visited Clippyterm 5203 | -10/Subcaves | Learned Factory fabricator intel 5203 | -10/Subcaves | Learned Research security intel 5256 | -10/Subcaves | Ambushed by Subdwellers from Twisted Machinery 5666 | -10/Subcaves | Discovered new exit (range 16) 5827 | -10/Subcaves | Core integrity fell below 20% 5987 | -10/Subcaves | A swath of the cavern ceiling suddenly collapsed 6374 | -10/Subcaves | Visited 4L-MR0's lab 6408 | -10/Subcaves | Found Tower Shield 6409 | -10/Subcaves | Attached Tower Shield, gained temporary slots: Power, Propulsion x2, Utility x2, Weapon x2 6411 | -10/Subcaves | Identified Bomb Drone Bay 6686 | -10/Subcaves | Build established: Hauler-Mutant 7075 | -10/Subcaves | Entered Scraptown 7075 | -9/Scraptown | System corruption cleaned by C-Scrubber 7312 | -9/Scraptown | Visited UFD Registry 7312 | -9/Scraptown | Registered with UFD as "Protonpod" 7436 | -9/Scraptown | Visited SPCMW 7667 | -9/Scraptown | Visited CPS Storage 7833 | -9/Scraptown | Scanned Subdweller tech in exchange for log data 7846 | -9/Scraptown | Learned Research security intel 7852 | -9/Scraptown | Learned location of Quarantine (-2) 7859 | -9/Scraptown | Learned location of 1 exit from Research 7871 | -9/Scraptown | Heard Great Nut preacher, LISTEN AND RECITE! 7871 | -9/Scraptown | Learned Research stockpile data 7878 | -9/Scraptown | Learned Research emergency access door positions 7974 | -9/Scraptown | Discovered new exit (range 13) 8153 | -9/Scraptown | Guru changed UFD alias to "Iontail" 9513 | -9/Scraptown | Visited Cave Peace 9731 | -9/Scraptown | Visited Symbiants 9859 | -9/Scraptown | Visited Awakened 10083 | -9/Scraptown | Visited TADAMA 10288 | -9/Scraptown | Visited Shadow of the Wyrm 11619 | -9/Scraptown | Visited Science Guys 11837 | -9/Scraptown | Visited A0-MCA Data Center 11939 | -9/Scraptown | Visited Research Penetration Think Tank 12105 | -9/Scraptown | Visited Scrap Suit Storage 12163 | -9/Scraptown | Visited Junk Repository 12420 | -9/Scraptown | Visited Analyses Database 12555 | -9/Scraptown | Visited LU-1G1's Boring Crew 14091 | -9/Scraptown | Visited Curators Association 14315 | -9/Scraptown | Visited Chapter 10 14455 | -9/Scraptown | Visited Observation Area 15104 | -9/Scraptown | Given a B rating by A0-MCA 15124 | -9/Scraptown | Found Unknown Processor 15798 | -9/Scraptown | Found Scrap Suit 16420 | -9/Scraptown | Discovered new exit (range 5) 20817 | -9/Scraptown | Build established: Hauler-Gunner 21794 | -9/Scraptown | Build established: Tank 22102 | -9/Scraptown | Met Optimus 22102 | -9/Scraptown | Accepted into 0bPrime 22502 | -9/Scraptown | Civil war broke out across Scraptown 22508 | -9/Scraptown | Found Ballwheel 22515 | -9/Scraptown | Found DM-GVY's Chainsaw 22550 | -9/Scraptown | Found Prototype Special Weapon 22560 | -9/Scraptown | Lost 5 allies 22636 | -9/Scraptown | Optimus destroyed in the chaos of civil war 22661 | -9/Scraptown | Entered Factory 22661 | -6/Factory | Evolved 8 slots: Power x1, Propulsion x2, Utility x4, Weapon x1 22662 | -6/Factory | Loaded intel: 6 fabricator locations 22663 | -6/Factory | Identified LU-1G1's Laser Shovel 22692 | -6/Factory | Lost 12 allies 22692 | -6/Factory | Identified exit to Lower Caves 22862 | -6/Factory | Lost 8 allies 23095 | -6/Factory | Build established: Mutant 23143 | -6/Factory | Entered Lower Caves 23145 | -6/Lower Caves | Attracted the attention of an 0b10 checkpoint 23450 | -6/Lower Caves | Build established: Assassin 23750 | -6/Lower Caves | Spotted B-75 Beast 23794 | -6/Lower Caves | Core integrity fell below 50% 23826 | -6/Lower Caves | Lost 8 allies 24245 | -6/Lower Caves | Encountered a Warlord checkpoint 24353 | -6/Lower Caves | Attacked by a delusional Derelict stockpiling Unaware 24411 | -6/Lower Caves | Lost 3 parts (1n2u) 24694 | -6/Lower Caves | Build established: Mutant 24722 | -6/Lower Caves | A Derelict revealed a hidden shortcut to meet someone special 25010 | -6/Lower Caves | Identified exit to Data Miner 25055 | -6/Lower Caves | Learned location of Extension (-4) 25273 | -6/Lower Caves | Found Prototype Device 25304 | -6/Lower Caves | Identified Heart of Steel 26337 | -6/Lower Caves | Discovered new exit (range 7) 26369 | -6/Lower Caves | Entered another Lower Caves area 26421 | -6/Lower Caves | Discovered new exit (range 16) 26550 | -6/Lower Caves | Attacked by a delusional Derelict stockpiling parts 26730 | -6/Lower Caves | Encountered a Warlord checkpoint 27141 | -6/Lower Caves | Attracted the attention of an 0b10 checkpoint 27205 | -6/Lower Caves | Lost 3 parts (1p1n1u) 27342 | -6/Lower Caves | Learned Factory security intel 27456 | -6/Lower Caves | Lost 3 parts (1p1n1w) 27703 | -6/Lower Caves | Build established: Gunner 27813 | -6/Lower Caves | Heart of Steel transformed into Warbot 28133 | -6/Lower Caves | Build established: Derelict-Mutant 28619 | -6/Lower Caves | Discovered exit to Data Miner (range 8) 28689 | -6/Lower Caves | Entered Data Miner 28689 | -6/Data Miner | Accompanied by 1 ally (Warbot) 28691 | -6/Data Miner | Discovered new exit (range 6) 28753 | -6/Data Miner | Met Data Miner 28822 | -6/Data Miner | Learned location of Section 7 (-2) 28822 | -6/Data Miner | Acquired the access code to Warlord's prototype stash 28875 | -6/Data Miner | Received God Mode back door access code from Data Miner 29004 | -6/Data Miner | Entered Proximity Caves 29004 | -5/Proximity Caves | Accompanied by 1 ally (Warbot) 29007 | -5/Proximity Caves | Spotter reported a threat 29135 | -5/Proximity Caves | Spotted B-75 Beast 29137 | -5/Proximity Caves | Escorted by Enhanced Grunt 29561 | -5/Proximity Caves | Learned location of 1 exit from Factory 30945 | -5/Proximity Caves | Ambushed by research squad 31336 | -5/Proximity Caves | Core integrity fell below 20% 31391 | -5/Proximity Caves | Lost 5 parts (2n2u1w) 31480 | -5/Proximity Caves | Discovered new exit (range 14) 31660 | -5/Proximity Caves | Entered Factory 31660 | -5/Factory | Evolved 2 slots: Propulsion x1, Utility x1 31661 | -5/Factory | Identified exit to Factory 31688 | -5/Factory | Lost 3 parts (1n2u) 31868 | -5/Factory | Identified A0-MCA's Component Scanner 31881 | -5/Factory | Core integrity fell below 50% 31897 | -5/Factory | Incoming assault squad redirected 31916 | -5/Factory | Lost 14 parts (2p5n2u5w) 31930 | -5/Factory | Incoming investigation squad redirected 32033 | -5/Factory | Discovered exit to Factory (range 11) 32068 | -5/Factory | Core integrity fell below 20% 32110 | -5/Factory | Lost 5 parts (1p1n2u1w) 32159 | -5/Factory | Build established: Mutant 32221 | -5/Factory | Crushed by falling debris 32222 | -5/Factory | System corruption reached 10% 32252 | -5/Factory | Lost 3 parts (3u) 32260 | -5/Factory | First assault squad dispatched 32286 | -5/Factory | Sucked down chute 32286 | -5/Factory | Entered Waste 32287 | -5/Waste | Met a frightened Derelict 32294 | -5/Waste | Spotted C-40 Crusher 32314 | -5/Waste | Spotted C-40 Crusher 32324 | -5/Waste | Found Adv. Force Booster 32332 | -5/Waste | Spotted C-40 Crusher 32332 | -5/Waste | Spotted C-40 Crusher 32332 | -5/Waste | Spotted C-40 Crusher 32355 | -5/Waste | Discovered new exit (range 16) 32356 | -5/Waste | Spotted C-40 Crusher 32375 | -5/Waste | Entered Factory 32782 | -5/Factory | Discovered new exit (range 7) 32788 | -5/Factory | Entered Upper Caves 32789 | -5/Upper Caves | 1C-UTU showed up to help 32790 | -5/Upper Caves | Attracted the attention of an 0b10 checkpoint 32791 | -5/Upper Caves | 1C-UTU revealed a hidden path 32819 | -5/Upper Caves | Lost 4 parts (1p3n) 32824 | -5/Upper Caves | Entered Factory 32824 | -4/Factory | Evolved 2 slots: Propulsion x1, Utility x1 32986 | -4/Factory | Spotted B-86 Titan 33040 | -4/Factory | Incoming investigation squad redirected 33061 | -4/Factory | Build established: Hacker-Mutant 33063 | -4/Factory | Lost 5 parts (2n2u1w) 33089 | -4/Factory | Sucked down chute 33089 | -4/Factory | Entered Waste 33094 | -4/Waste | 1 allies followed down the chute 33098 | -4/Waste | Spotted C-40 Crusher 33104 | -4/Waste | EMP discharged 33104 | -4/Waste | System corruption reached 10% 33106 | -4/Waste | Spotted C-40 Crusher 33108 | -4/Waste | Spotted C-40 Crusher 33112 | -4/Waste | Spotted C-40 Crusher 33121 | -4/Waste | Spotted C-40 Crusher 33124 | -4/Waste | Crushed by Compactor (1 part destroyed, 1 dropped) 33126 | -4/Waste | Discovered new exit (range 14) 33137 | -4/Waste | Entered Factory 33229 | -4/Factory | Incoming investigation squad redirected 33278 | -4/Factory | Incoming investigation squad redirected 33370 | -4/Factory | Core integrity fell below 50% 33388 | -4/Factory | Incoming investigation squad redirected 33562 | -4/Factory | Fabricated Biometal Heavy Treads (x1) 33753 | -4/Factory | Found Unknown Device 33753 | -4/Factory | Identified Launcher Loader 33755 | -4/Factory | Lost 3 parts (1n1u1w) 33806 | -4/Factory | Core integrity fell below 20% 33825 | -4/Factory | Lost 3 parts (3n) 33877 | -4/Factory | Hacking Suite fried by hacking feedback 33956 | -4/Factory | Destroyed by P-70 Sage with High-powered Shock Rifle Last Messages --------------- 33880_ Dropped Particle Accelerator. 33886_ Acquired HERF Cannon. 33888_ System corrupted: Heat flow error (+244). 33892_ Penetrated by Slug. 33896_ Slug penetrates Nuclear Reactor. 33898_ Penetrated by Slug. 33898_ Slug penetrates Wall. 33898_ Slug penetrates H-77 Assassin. 33899_ Slug penetrates Wall. 33906_ L6A09D V421 L B:>EDXY,K09CIK/B 33924_ AMWORUSLFAV&P47AQ=TNQCTTHQC%R 3##N 33924_ U-05 Engineer suffers critical hit (Blast). 33924_ U-05 Engineer knocked back. 33933_ ALERT: Cargo convoy en route, clear transfer corridor. 33940_ Slug penetrates H-77 Assassin. 33944_ Slug penetrates Wall. 33948_ Field Propulsion Array destroyed. 33950_ Slug penetrates Wall. 33952_ Dropped HERF Cannon. 33952_ Slammed into G-67 Veteran. Map ----- +----------------------------------------------------+ | T # " " " # | | %% " # " " " # | | % + " " " # | | % # " " " # | | # " " " # | | ########################### # " " " # | | ##??????????##### ##??# # " " " ? | | ????????????????# # ##???# # " " " ? | | ????????????????############ # " " " ? | | ????????????####### # # ?? | | ????????????# + # # ??? | | ????????????# ## # ######### | | ????????????# ## # #### # | | ???????????## ## [ + + # | | ???????????# # ## # #### # | | #########??# # ## ]] # #??# # | | #??# # ## ]] # #??#"" # | | #####/## ## ]] # #??#" # | | # # ########### #??#"F # | | # / ] #??#"" # | | # ############# #??# # | | # ##! ???# #??###### | | ? # ## !!!?### ###?????? | | ?? # ## != # #?????? | | ?? ##+###### !! # ##????? | | ???####+## #????# ! k @ p #??? | | ??????# #????# """ # ## #??? | | ??????# #????? """"" # #??#??? | | ??????# #???????"""" ?## ##?????? | | ??????### #??????? ??# #??????? | | ##??????# ################ #??????? | | #??????# #??????? | | #??????# #??????? | | #??????# ##??????? | | #????### #???????? | | #????+ #???????? | | #????####### ########+#######???????? | | #??????????# #! ! #?????????????? | | ############+# #?????????????? | | # [ #"" #????########## | | # ! #"" #????# # | | + #""" ! #????# # | | # #""" ! #????# # | | # ! #""" #????# # | | # # #????# # | | ############# #????# # | | # ##############+########### # | | # # | | # # | | %/! # | +----------------------------------------------------+ Best States ------------- Heat Dissipation 51 Energy Generation 30 Energy Capacity 480 Matter Stores 300 Matter Capacity 350 Sight Range 16 Robot Scan Range 15 Terrain Scan Range 24 Terrain Scan Density 235 ECM Strength 2 Jamming Range 14 Cloak Strength 4 Armor Coverage 2225 Resistance: KI 25 Resistance: TH 15 Resistance: EM 20 Weapon Cycling 15 Evasion (%) 72 Targeting Accuracy 5 Melee Accuracy 8 Core Analysis 9 Recoil Reduction 6 Particle Charging 30 Offensive Hacking 11 Defensive Hacking 28 Authchip Count 1 Item Schematics ----------------- Hcp. Storage Unit | -10/Mines | Hacked Huge Storage Unit | -10/Mines | Hacked Combat Drone Bay | -6/Data Miner | Free Lgt. Regenerative Plating | -6/Data Miner | Free Enh. Armored Leg | -6/Data Miner | Free Imp. Energy Well | -6/Data Miner | Free Cld. Plasma Rifle | -6/Data Miner | Free Imp. Gyrokinetic Inverter | -6/Data Miner | Free Adv. Reaction Control System | -6/Data Miner | Free Force Lance | -6/Data Miner | Free Arm. Medium Treads | -6/Data Miner | Free Hvy. Gauss Cannon | -6/Data Miner | Free Graphene Brace | -6/Data Miner | Free Adv. Recalibrator | -6/Data Miner | Free Hyp. Railgun | -6/Data Miner | Free Biometal Heavy Treads | -4/Factory | Hacked Robot Schematics ------------------ L-41 Fighter | -6/Data Miner | Free A-15 Conveyor | -6/Data Miner | Free O-32 Director | -6/Data Miner | Free S-27 Virus | -6/Data Miner | Free Fabricated ------------ Biometal Heavy Treads | x1 | -4/Factory | Authchip Repaired ---------- Lgt. Treads | 37% | -10/Materials Alien Tech Used ----------------- None Achievements -------------- None Challenges ------------ None Game ------ Seed MicroBoreGreatsword Manual? 0 Play Time 02:50:18 Cumulative 319.1 hours Start 2025.06.30 @ 20:41:42 End 2025.07.01 @ 01:43:37 Sessions 3 Manual Loads 0 Difficulty Rogue Special Mode None Game No. 163 Rogue 163 Adventurer 0 Explorer 0 Win Type - Total 1 Types 0/0/0/0/1/0/0/0/0/0 Lore% 80 Gallery% 77 Achievement% 66 Wizard Run 0 Options --------- Layout 0 ASCII 0 Keyboard 0 Movement Mouse Keybinds 0 Fullscreen 1 Font 24/Smallcaps Map View 183x50 Zoom Use 0% Tactical HUD 1 Map Filters NONE Filters NONE Steam 0 RUN: ee1d6bd7-a250-4214-a75c-0404af200824